[Event "26th Abu Dhabi Master 2019"]
[Site "Abu Dhabi"]
[Date "2019.08.07"]
[Round "6.60"]
[White "Deshpande, Aniruddha"]
[Black "Moksh Amit Doshi"]
[Result "1-0"]
[ECO "A62"]
[WhiteElo "2234"]
[BlackElo "2229"]
[Annotator "NA"]
[PlyCount "77"]
[EventDate "2019.08.02"]
[EventType "swiss"]
[EventCountry "UAE"]
[SourceTitle "playchess.com"]
[Source "ChessBase"]
[SourceQuality "1"]
[TimeControl "5400+30"]

1. d4 {[%emt 0:00:00]} Nf6 {[%emt 0:00:59]} 2. c4 {[%emt 0:00:00]} e6 {[%emt 0:00:05]} 3. g3 {[%emt 0:00:37]} c5 {[%emt 0:00:37]} 4. d5 {[%emt 0:00:21]} exd5 {[%emt 0:00:06]} 5. cxd5 {[%emt 0:00:07]} d6 {[%emt 0:00:03]} 6. Nc3 {[%emt 0:00:16]} g6 {[%emt 0:00:06]} 7. Nf3 {[%emt 0:00:48]} Bg7 {[%emt 0:00:06]} 8. Bg2 {[%emt 0:00:04]} O-O {[%emt 0:00:06]} 9. O-O {[%emt 0:00:05]} Re8 {[%emt 0:00:06]} 10. Re1 {[%emt 0:01:44]} a6 {[%emt 0:00:50]} 11. a4 {[%emt 0:00:10]} b6 {[%emt 0:01:51]} 12. h3 {[%emt 0:13:13]} Nbd7 {[%emt 0:03:02]} 13. e4 {[%emt 0:04:03]} Rb8 {[%emt 0:02:14]} 14. Bf4 {[%emt 0:01:39]} Qc7 {[%emt 0:02:49]} 15. e5 {[%emt 0:02:35]} Nxe5 {[%emt 0:05:52]} 16. Nxe5 {[%emt 0:09:07]} dxe5 {[%emt 0:02:00]} 17. d6 {[%emt 0:01:30]} Qd8 {[%emt 0:09:29]} 18. Bxe5 {[%emt 0:04:01]} Bd7 {[%emt 0:04:21]} 19. Nd5 {[%emt 0:13:07]} Nxd5 {[%emt 0:01:34]} 20. Qxd5 {[%emt 0:01:18]} Rxe5 {[%emt 0:04:13]} 21. Rxe5 {[%emt 0:00:45]} Bc6 {[%emt 0:00:28]} 22. Qxc6 {[%emt 0:01:05]} Bxe5 {[%emt 0:00:53]} 23. d7 {[%emt 0:00:32]} Qc7 {[%emt 0:12:50]} 24. Re1 {[%emt 0:00:31]} Rd8 {[%emt 0:00:14]} 25. Qxc7 {[%emt 0:03:16]} Bxc7 {[%emt 0:00:04]} 26. Re8+ {[%emt 0:00:13]} Kg7 {[%emt 0:00:05]} 27. Bc6 {[%emt 0:00:05]} Kf6 {[%emt 0:03:41]} 28. Kg2 {[%emt 0:03:19]} h5 {[%emt 0:01:30]} 29. f4 {[%emt 0:05:54]} Kg7 {[%emt 0:02:51]} 30. Kf3 {[%emt 0:01:00]} Kf6 {[%emt 0:00:09]} 31. g4 {[%emt 0:02:22]} hxg4+ {[%emt 0:01:44]} 32. Kxg4 {[%emt 0:03:32]} Kg7 {[%emt 0:02:04]} 33. Kg5 {[%emt 0:01:14]} f6+ {[%emt 0:00:22]} 34. Kg4 {[%emt 0:00:07]} Kf7 {[%emt 0:00:31]} 35. f5 {[%emt 0:00:21]} Kg7 {[%emt 0:00:49]} 36. h4 {[%emt 0:01:34]} Kh7 {[%emt 0:00:59]} 37. fxg6+ {[%emt 0:02:50]} Kxg6 {[%emt 0:00:07]} 38. h5+ {[%emt 0:00:04]} Kh6 {[%emt 0:00:14]} 39. Kf5 {[%emt 0:00:12]} 1-0

[Event "26th Abu Dhabi Master 2019"]
[Site "Abu Dhabi"]
[Date "2019.08.07"]
[Round "6.61"]
[White "Asaka, Samuel"]
[Black "Srijit Paul"]
[Result "1-0"]
[ECO "A81"]
[WhiteElo "2201"]
[BlackElo "2298"]
[Annotator "NA"]
[PlyCount "51"]
[EventDate "2019.08.02"]
[EventType "swiss"]
[EventCountry "UAE"]
[SourceTitle "playchess.com"]
[Source "ChessBase"]
[SourceQuality "1"]
[TimeControl "5400+30"]

1. d4 {[%emt 0:00:00]} f5 {[%emt 0:00:00]} 2. g3 {[%emt 0:00:00]} Nf6 {[%emt 0:00:00]} 3. Bg2 {[%emt 0:00:00]} g6 {[%emt 0:00:03]} 4. Nf3 {[%emt 0:00:00]} Bg7 {[%emt 0:00:05]} 5. O-O {[%emt 0:00:02]} O-O {[%emt 0:00:03]} 6. b3 {[%emt 0:00:08]} Ne4 {[%emt 0:02:42]} 7. Bb2 {[%emt 0:00:15]} d6 {[%emt 0:00:08]} 8. Nbd2 {[%emt 0:00:21]} Nc6 {[%emt 0:00:07]} 9. Ne1 {[%emt 0:00:19]} d5 {[%emt 0:00:07]} 10. Ndf3 {[%emt 0:00:38]} a5 {[%emt 0:00:13]} 11. Nd3 {[%emt 0:10:12]} a4 {[%emt 0:00:30]} 12. Rc1 {[%emt 0:00:19]} Kh8 {[%emt 0:13:45]} 13. e3 {[%emt 0:00:47]} axb3 {[%emt 0:01:58]} 14. axb3 {[%emt 0:00:10]} b6 {[%emt 0:00:57]} 15. c4 {[%emt 0:18:54]} dxc4 {[%emt 0:15:13]} 16. bxc4 {[%emt 0:00:10]} Na5 {[%emt 0:00:04]} 17. Ng5 {[%emt 0:12:36]} Nxg5 {[%emt 0:03:01]} 18. Bxa8 {[%emt 0:00:12]} c6 {[%emt 0:01:48]} 19. Bc3 {[%emt 0:16:06]} Bd7 {[%emt 0:00:13]} 20. Bxa5 {[%emt 0:00:46]} bxa5 {[%emt 0:00:07]} 21. Bb7 {[%emt 0:03:03]} Qc7 {[%emt 0:00:07]} 22. Rb1 {[%emt 0:01:10]} Rb8 {[%emt 0:05:52]} 23. Nc5 {[%emt 0:00:38]} Qd6 {[%emt 0:00:08]} 24. h4 {[%emt 0:09:30]} Ne4 {[%emt 0:02:01]} 25. Nxd7 {[%emt 0:00:27]} Qxd7 {[%emt 0:04:45]} 26. Bxc6 {[%emt 0:00:25]} 1-0

[Event "26th Abu Dhabi Master 2019"]
[Site "Abu Dhabi"]
[Date "2019.08.07"]
[Round "6.62"]
[White "Priyanka, K."]
[Black "Gomes, Mary Ann"]
[Result "1-0"]
[ECO "B92"]
[WhiteElo "2201"]
[BlackElo "2303"]
[Annotator "NA"]
[PlyCount "115"]
[EventDate "2019.08.02"]
[EventType "swiss"]
[EventCountry "UAE"]
[SourceTitle "playchess.com"]
[Source "ChessBase"]
[SourceQuality "1"]
[TimeControl "5400+30"]

1. e4 {[%emt 0:00:08]} c5 {[%emt 0:00:00]} 2. Nf3 {[%emt 0:00:09]} d6 {[%emt 0:00:00]} 3. d4 {[%emt 0:00:06]} cxd4 {[%emt 0:00:00]} 4. Nxd4 {[%emt 0:00:08]} Nf6 {[%emt 0:00:00]} 5. Nc3 {[%emt 0:00:04]} a6 {[%emt 0:00:05]} 6. Be2 {[%emt 0:00:43]} e5 {[%emt 0:00:08]} 7. Nf3 {[%emt 0:00:22]} Be7 {[%emt 0:00:12]} 8. Bg5 {[%emt 0:00:15]} Be6 {[%emt 0:02:33]} 9. Bxf6 {[%emt 0:00:43]} Bxf6 {[%emt 0:00:09]} 10. O-O {[%emt 0:00:37]} O-O {[%emt 0:00:13]} 11. Nd5 {[%emt 0:01:47]} Be7 {[%emt 0:05:51]} 12. Bc4 {[%emt 0:05:30]} Nd7 {[%emt 0:00:32]} 13. Bb3 {[%emt 0:04:14]} Rc8 {[%emt 0:03:06]} 14. Qe2 {[%emt 0:05:00]} Bxd5 {[%emt 0:11:14]} 15. Bxd5 {[%emt 0:00:45]} Qb6 {[%emt 0:01:44]} 16. c3 {[%emt 0:01:45]} Nf6 {[%emt 0:00:20]} 17. Rad1 {[%emt 0:01:08]} Nxd5 {[%emt 0:03:03]} 18. Rxd5 {[%emt 0:04:33]} Rc5 {[%emt 0:00:10]} 19. Rfd1 {[%emt 0:05:50]} Rxd5 {[%emt 0:02:03]} 20. Rxd5 {[%emt 0:00:31]} Rc8 {[%emt 0:00:09]} 21. Ne1 {[%emt 0:05:33]} Rc5 {[%emt 0:02:58]} 22. Rxc5 {[%emt 0:09:58]} Qxc5 {[%emt 0:01:07]} 23. Qd3 {[%emt 0:01:52]} Bd8 {[%emt 0:13:02]} 24. Nc2 {[%emt 0:03:12]} Bb6 {[%emt 0:02:35]} 25. Ne3 {[%emt 0:00:20]} a5 {[%emt 0:01:41]} 26. Qc4 {[%emt 0:04:38]} g6 {[%emt 0:09:16]} 27. Qxc5 {[%emt 0:04:47]} dxc5 {[%emt 0:06:12]} 28. a4 {[%emt 0:07:56]} f6 {[%emt 0:00:49]} 29. Kf1 {[%emt 0:01:47]} Kf7 {[%emt 0:00:34]} 30. Ke2 {[%emt 0:00:47]} Ke6 {[%emt 0:00:38]} 31. Kd3 {[%emt 0:01:31]} Kd7 {[%emt 0:05:09]} 32. Kc4 {[%emt 0:01:23]} Kc6 {[%emt 0:00:06]} 33. Nd5 {[%emt 0:00:30]} Bd8 {[%emt 0:00:06]} 34. g4 {[%emt 0:00:46]} h6 {[%emt 0:07:21]} 35. Ne3 {[%emt 0:04:39]} Be7 {[%emt 0:04:04]} 36. h4 {[%emt 0:01:27]} h5 {[%emt 0:01:50]} 37. gxh5 {[%emt 0:01:00]} gxh5 {[%emt 0:00:07]} 38. Nf5 {[%emt 0:00:41]} Bd8 {[%emt 0:03:02]} 39. f3 {[%emt 0:01:37]} b6 {[%emt 0:01:02]} 40. Ng7 {[%emt 0:00:54]} f5 {[%emt 0:00:21]} 41. exf5 {[%emt 0:01:17]} Bxh4 {[%emt 0:00:27]} 42. Nxh5 {[%emt 0:00:13]} Bg5 {[%emt 0:01:52]} 43. f6 {[%emt 0:03:48]} Kd6 {[%emt 0:01:15]} 44. Kb5 {[%emt 0:00:58]} Bc1 {[%emt 0:01:42]} 45. b3 {[%emt 0:00:46]} Bd2 {[%emt 0:05:04]} 46. c4 {[%emt 0:00:27]} Ke6 {[%emt 0:00:31]} 47. Kxb6 {[%emt 0:00:28]} Bb4 {[%emt 0:00:11]} 48. Kc6 {[%emt 0:00:40]} Ba3 {[%emt 0:00:29]} 49. Kc7 {[%emt 0:01:15]} Bb4 {[%emt 0:02:18]} 50. Kc6 {[%emt 0:06:02]} Ba3 {[%emt 0:00:14]} 51. f7 {[%emt 0:01:47]} Kxf7 {[%emt 0:00:05]} 52. Kd5 {[%emt 0:00:16]} Kg6 {[%emt 0:00:18]} 53. Ng3 {[%emt 0:00:11]} Kf6 {[%emt 0:03:29]} 54. Ne4+ {[%emt 0:00:28]} Kf5 {[%emt 0:00:06]} 55. Nxc5 {[%emt 0:00:13]} Kf4 {[%emt 0:00:20]} 56. Nd3+ {[%emt 0:00:37]} Kxf3 {[%emt 0:00:10]} 57. Nxe5+ {[%emt 0:00:05]} Ke3 {[%emt 0:00:05]} 58. c5 {[%emt 0:00:10] Ke4+ Kxe4} 1-0

[Event "26th Abu Dhabi Master 2019"]
[Site "Abu Dhabi"]
[Date "2019.08.07"]
[Round "6.63"]
[White "Utsab Chatterjee"]
[Black "Srija, Seshadri"]
[Result "1-0"]
[ECO "C72"]
[WhiteElo "2150"]
[BlackElo "2306"]
[Annotator "NA"]
[PlyCount "87"]
[EventDate "2019.08.02"]
[EventType "swiss"]
[EventCountry "UAE"]
[SourceTitle "playchess.com"]
[Source "ChessBase"]
[SourceQuality "1"]
[TimeControl "5400+30"]

1. e4 {[%emt 0:00:24]} e5 {[%emt 0:00:00]} 2. Nf3 {[%emt 0:00:37]} Nc6 {[%emt 0:00:00]} 3. Bb5 {[%emt 0:00:21]} a6 {[%emt 0:00:19]} 4. Ba4 {[%emt 0:00:21]} d6 {[%emt 0:00:24]} 5. O-O {[%emt 0:00:33]} Bd7 {[%emt 0:00:27]} 6. c3 {[%emt 0:00:40]} g6 {[%emt 0:00:38]} 7. d4 {[%emt 0:02:45]} Bg7 {[%emt 0:00:29]} 8. Be3 {[%emt 0:00:18]} b5 {[%emt 0:02:16]} 9. Bb3 {[%emt 0:01:10]} Nf6 {[%emt 0:00:24]} 10. dxe5 {[%emt 0:06:46]} Nxe5 {[%emt 0:03:22]} 11. Nxe5 {[%emt 0:03:06]} dxe5 {[%emt 0:00:02]} 12. Nd2 {[%emt 0:00:22]} Qe7 {[%emt 0:04:49]} 13. h3 {[%emt 0:02:04]} O-O {[%emt 0:04:00]} 14. Bc2 {[%emt 0:04:03]} h6 {[%emt 0:13:29]} 15. b4 {[%emt 0:07:17]} Rfd8 {[%emt 0:01:10]} 16. Qf3 {[%emt 0:01:11]} g5 {[%emt 0:11:49]} 17. g4 {[%emt 0:03:31]} Nh7 {[%emt 0:08:56]} 18. Nb3 {[%emt 0:01:55]} Nf8 {[%emt 0:01:48]} 19. Nc5 {[%emt 0:09:08]} Bc6 {[%emt 0:00:52]} 20. a4 {[%emt 0:01:18]} Ng6 {[%emt 0:02:00]} 21. Ra3 {[%emt 0:02:58]} Nf4 {[%emt 0:03:17]} 22. Rfa1 {[%emt 0:02:14]} Rd6 {[%emt 0:00:56]} 23. Bxf4 {[%emt 0:03:47]} gxf4 {[%emt 0:05:13]} 24. axb5 {[%emt 0:00:57]} Bxb5 {[%emt 0:00:09]} 25. Bb3 {[%emt 0:00:10]} h5 {[%emt 0:20:24]} 26. gxh5 {[%emt 0:05:58]} Qg5+ {[%emt 0:03:55]} 27. Kh2 {[%emt 0:02:34]} Rd2 {[%emt 0:00:56]} 28. c4 {[%emt 0:02:18]} Qh4 {[%emt 0:00:19]} 29. R3a2 {[%emt 0:01:25]} Rxa2 {[%emt 0:01:17]} 30. Rxa2 {[%emt 0:00:17]} Be8 {[%emt 0:00:13]} 31. Nxa6 {[%emt 0:15:56]} f6 {[%emt 0:05:03]} 32. Qg4 {[%emt 0:01:54]} Qxh5 {[%emt 0:00:19]} 33. Qxh5 {[%emt 0:00:18]} Bxh5 {[%emt 0:00:02]} 34. Nxc7 {[%emt 0:00:39]} Rxa2 {[%emt 0:00:31]} 35. Bxa2 {[%emt 0:00:01]} Bf8 {[%emt 0:00:15]} 36. c5+ {[%emt 0:01:21]} Kh8 {[%emt 0:01:45]} 37. Ne6 {[%emt 0:01:15]} Be7 {[%emt 0:00:14]} 38. c6 {[%emt 0:00:01]} Be8 {[%emt 0:00:25]} 39. b5 {[%emt 0:00:12]} Bd6 {[%emt 0:00:30]} 40. Bd5 {[%emt 0:00:13]} f5 {[%emt 0:00:54]} 41. b6 {[%emt 0:01:58]} fxe4 {[%emt 0:01:00]} 42. Bxe4 {[%emt 0:00:07]} Bf7 {[%emt 0:00:36]} 43. Ng5 {[%emt 0:00:02]} Be8 {[%emt 0:00:09]} 44. c7 {[%emt 0:00:02]} 1-0

[Event "26th Abu Dhabi Master 2019"]
[Site "Abu Dhabi"]
[Date "2019.08.07"]
[Round "6.64"]
[White "Adnan, Habib"]
[Black "Alinasab, Mobina"]
[Result "1-0"]
[ECO "A64"]
[WhiteElo "2197"]
[BlackElo "2280"]
[Annotator "NA"]
[PlyCount "83"]
[EventDate "2019.08.02"]
[EventType "swiss"]
[EventCountry "UAE"]
[SourceTitle "playchess.com"]
[Source "ChessBase"]
[SourceQuality "1"]
[TimeControl "5400+30"]

1. d4 Nf6 2. c4 e6 3. g3 c5 4. d5 exd5 5. cxd5 g6 6. Bg2 d6 7. Nf3 Bg7 8. O-O O-O 9. Nc3 Re8 10. Nd2 a6 11. a4 Nbd7 12. Nc4 Ne5 13. Na3 Nh5 14. h3 Rb8 15. e4 Bd7 16. a5 Qxa5 17. g4 Nf6 18. f4 Nexg4 19. hxg4 Nxg4 20. f5 h5 21. Bg5 Bd4+ 22. Kh1 Nf2+ 23. Rxf2 Bxf2 24. Nc2 Qb6 25. Qd2 Bg3 26. Ne3 Qc7 27. Bf6 Bf4 28. Rf1 Bh6 29. Qf2 b5 30. Ne2 b4 31. Nf4 Kh7 32. Rg1 Rg8 33. Bh3 Rbe8 34. Qf3 a5 35. Kh2 Bc8 36. Neg2 a4 37. Nh4 g5 38. Qxh5 gxf4 39. Rg6 Rxg6 40. fxg6+ Kg8 41. Qxh6 fxg6 42. Qh8+ 1-0

[Event "26th Abu Dhabi Master 2019"]
[Site "Abu Dhabi"]
[Date "2019.08.07"]
[Round "6.65"]
[White "Salonika, Saina"]
[Black "Salih, Akar Ali Salih"]
[Result "1/2-1/2"]
[ECO "B07"]
[WhiteElo "2127"]
[BlackElo "2261"]
[Annotator "NA"]
[PlyCount "43"]
[EventDate "2019.08.02"]
[EventType "swiss"]
[EventCountry "UAE"]
[SourceTitle "playchess.com"]
[Source "ChessBase"]
[SourceQuality "1"]
[TimeControl "5400+30"]

1. e4 {[%emt 0:00:00]} d6 {[%emt 0:00:30]} 2. d4 {[%emt 0:00:00]} Nf6 {[%emt 0:00:07]} 3. Nc3 {[%emt 0:00:00]} e5 {[%emt 0:00:08]} 4. dxe5 {[%emt 0:01:44]} dxe5 {[%emt 0:00:09]} 5. Qxd8+ {[%emt 0:00:07]} Kxd8 {[%emt 0:00:03]} 6. Bc4 {[%emt 0:02:22]} Ke8 {[%emt 0:00:16]} 7. Nf3 {[%emt 0:02:41]} Bd6 {[%emt 0:01:13]} 8. O-O {[%emt 0:12:46]} h6 {[%emt 0:09:25]} 9. b3 {[%emt 0:05:26]} a6 {[%emt 0:05:07]} 10. a4 {[%emt 0:00:54]} Nbd7 {[%emt 0:03:44]} 11. Bb2 {[%emt 0:03:32]} Ke7 {[%emt 0:15:59]} 12. Rfe1 {[%emt 0:06:06]} Re8 {[%emt 0:03:45]} 13. Na2 {[%emt 0:16:49]} Kf8 {[%emt 0:03:28]} 14. Nc1 {[%emt 0:00:25]} b6 {[%emt 0:03:45]} 15. Nd2 {[%emt 0:06:51]} Bb4 {[%emt 0:10:15]} 16. c3 {[%emt 0:00:49]} Bd6 {[%emt 0:00:13]} 17. Bd3 {[%emt 0:02:06]} Bb7 {[%emt 0:06:08]} 18. Nc4 {[%emt 0:05:28]} Nc5 {[%emt 0:00:46]} 19. f3 {[%emt 0:05:34]} Kg8 {[%emt 0:02:22]} 20. Bc2 {[%emt 0:01:09]} Bf8 {[%emt 0:03:01]} 21. b4 {[%emt 0:02:08]} Ncd7 {[%emt 0:02:18]} 22. Nd3 {[%emt 0:00:46]} 1/2-1/2

[Event "26th Abu Dhabi Master 2019"]
[Site "Abu Dhabi"]
[Date "2019.08.07"]
[Round "6.66"]
[White "Siva Mahadevan"]
[Black "Sharma Isha"]
[Result "1/2-1/2"]
[ECO "C41"]
[WhiteElo "2270"]
[BlackElo "2188"]
[Annotator "NA"]
[PlyCount "83"]
[EventDate "2019.08.02"]
[EventType "swiss"]
[EventCountry "UAE"]
[SourceTitle "playchess.com"]
[Source "ChessBase"]
[SourceQuality "1"]
[TimeControl "5400+30"]

1. e4 {[%emt 0:05:31]} d6 {[%emt 0:00:00]} 2. d4 {[%emt 0:00:10]} Nf6 {[%emt 0:00:00]} 3. Nc3 {[%emt 0:00:08]} e5 {[%emt 0:00:05]} 4. Nf3 {[%emt 0:02:34]} Nbd7 {[%emt 0:00:16]} 5. g4 {[%emt 0:01:47]} Nxg4 {[%emt 0:00:53]} 6. Rg1 {[%emt 0:00:10]} exd4 {[%emt 0:00:10]} 7. Nxd4 {[%emt 0:05:03]} Ngf6 {[%emt 0:01:40]} 8. Be3 {[%emt 0:04:30]} Ne5 {[%emt 0:09:19]} 9. Be2 {[%emt 0:05:37]} Bd7 {[%emt 0:10:44]} 10. Qd2 {[%emt 0:07:17]} c6 {[%emt 0:05:02]} 11. O-O-O {[%emt 0:02:52]} h6 {[%emt 0:08:21]} 12. f4 {[%emt 0:11:13]} Ng6 {[%emt 0:00:18]} 13. Rxg6 {[%emt 0:08:27]} fxg6 {[%emt 0:00:38]} 14. e5 {[%emt 0:00:02]} d5 {[%emt 0:19:46]} 15. Qd3 {[%emt 0:10:55]} Qe7 {[%emt 0:15:31]} 16. Qxg6+ {[%emt 0:04:35]} Kd8 {[%emt 0:00:32]} 17. Qg3 {[%emt 0:04:02]} Ne8 {[%emt 0:06:11]} 18. f5 {[%emt 0:02:35]} Nc7 {[%emt 0:02:08]} 19. e6 {[%emt 0:10:29]} Be8 {[%emt 0:00:06]} 20. Bf4 {[%emt 0:03:23]} Kc8 {[%emt 0:03:52]} 21. h4 {[%emt 0:02:46]} b5 {[%emt 0:05:58]} 22. Bf3 {[%emt 0:04:40]} b4 {[%emt 0:00:51]} 23. Nce2 {[%emt 0:00:58]} a5 {[%emt 0:02:28]} 24. Be5 {[%emt 0:01:05]} a4 {[%emt 0:01:22]} 25. Nf4 {[%emt 0:00:24]} b3 {[%emt 0:02:18]} 26. a3 {[%emt 0:00:34]} Ra5 {[%emt 0:01:17]} 27. c3 {[%emt 0:00:51]} Nb5 {[%emt 0:01:01]} 28. Ng6 {[%emt 0:00:42]} Bxg6 {[%emt 0:01:06]} 29. Nxc6 {[%emt 0:00:25]} Qc5 {[%emt 0:00:11]} 30. Nxa5 {[%emt 0:00:28]} Qe3+ {[%emt 0:00:39]} 31. Kb1 {[%emt 0:00:39]} Bxf5+ {[%emt 0:00:09]} 32. Ka1 {[%emt 0:00:02]} Nxa3 {[%emt 0:01:14]} 33. bxa3 {[%emt 0:00:14]} Qc5 {[%emt 0:00:18]} 34. Nc4 {[%emt 0:01:11]} dxc4 {[%emt 0:00:50]} 35. Bb7+ {[%emt 0:00:23]} Kxb7 {[%emt 0:00:04]} 36. Qf3+ {[%emt 0:00:02]} Ka6 {[%emt 0:01:54]} 37. Qa8+ {[%emt 0:00:08]} Qa7 {[%emt 0:00:14]} 38. Qc6+ {[%emt 0:00:43]} Qb6 {[%emt 0:00:01]} 39. Qxa4+ {[%emt 0:00:42]} Qa5 {[%emt 0:00:14]} 40. Qc6+ {[%emt 0:00:45]} Qb6 {[%emt 0:00:04]} 41. Qa4+ {[%emt 0:00:44]} Qa5 {[%emt 0:00:07]} 42. Qc6+ {[%emt 0:00:38]} 1/2-1/2

[Event "26th Abu Dhabi Master 2019"]
[Site "Abu Dhabi"]
[Date "2019.08.07"]
[Round "6.67"]
[White "Paramzina, Anastasya"]
[Black "Mahdian, Anousha"]
[Result "1-0"]
[ECO "B10"]
[WhiteElo "2300"]
[BlackElo "2118"]
[Annotator "NA"]
[PlyCount "45"]
[EventDate "2019.08.02"]
[EventType "swiss"]
[EventCountry "UAE"]
[SourceTitle "playchess.com"]
[Source "ChessBase"]
[SourceQuality "1"]
[TimeControl "5400+30"]

1. e4 c6 2. Nc3 d5 3. Nf3 dxe4 4. Nxe4 Nf6 5. Ng3 h5 6. d3 h4 7. Ne2 h3 8. gxh3 Nbd7 9. Bg2 e5 10. Ng3 g6 11. Qe2 Bd6 12. O-O Kf8 13. Bg5 Qc7 14. Rae1 Nd5 15. Ne4 f6 16. Bd2 Nc5 17. Nxd6 Qxd6 18. c4 Nc7 19. d4 Nd7 20. dxe5 Nxe5 21. Nxe5 Qxe5 22. Qd3 Bf5 23. Qa3+ 1-0

[Event "26th Abu Dhabi Master 2019"]
[Site "Abu Dhabi"]
[Date "2019.08.07"]
[Round "6.68"]
[White "Mithil, Ajgaonkar"]
[Black "Mrudul Dehankar"]
[Result "1/2-1/2"]
[ECO "E15"]
[WhiteElo "2314"]
[BlackElo "2074"]
[Annotator "NA"]
[PlyCount "138"]
[EventDate "2019.08.02"]
[EventType "swiss"]
[EventCountry "UAE"]
[SourceTitle "playchess.com"]
[Source "ChessBase"]
[SourceQuality "1"]
[TimeControl "5400+30"]

1. d4 {[%emt 0:01:14]} Nf6 {[%emt 0:00:00]} 2. c4 {[%emt 0:00:42]} e6 {[%emt 0:00:00]} 3. Nf3 {[%emt 0:00:04]} b6 {[%emt 0:00:07]} 4. g3 {[%emt 0:00:02]} Ba6 {[%emt 0:00:14]} 5. b3 {[%emt 0:01:12]} Bb4+ {[%emt 0:00:13]} 6. Bd2 {[%emt 0:00:01]} Be7 {[%emt 0:00:08]} 7. Bg2 {[%emt 0:00:02]} c6 {[%emt 0:00:20]} 8. Bc3 {[%emt 0:03:30]} d5 {[%emt 0:00:13]} 9. Ne5 {[%emt 0:03:21]} Nfd7 {[%emt 0:01:17]} 10. Nxd7 {[%emt 0:00:08]} Nxd7 {[%emt 0:00:04]} 11. Nd2 {[%emt 0:00:03]} O-O {[%emt 0:00:07]} 12. O-O {[%emt 0:00:02]} Rc8 {[%emt 0:05:13]} 13. e4 {[%emt 0:01:36]} b5 {[%emt 0:05:56]} 14. Re1 {[%emt 0:03:36]} bxc4 {[%emt 0:10:32]} 15. bxc4 {[%emt 0:00:14]} dxc4 {[%emt 0:02:13]} 16. Qa4 {[%emt 0:31:10]} Bb5 {[%emt 0:05:43]} 17. Qc2 {[%emt 0:00:03]} Nf6 {[%emt 0:14:12]} 18. a4 {[%emt 0:06:33]} Ba6 {[%emt 0:00:10]} 19. Rad1 {[%emt 0:04:38]} Rb8 {[%emt 0:06:49]} 20. Bf1 {[%emt 0:05:59]} Bb4 {[%emt 0:10:32]} 21. Bxc4 {[%emt 0:00:28]} Bxc4 {[%emt 0:08:36]} 22. Nxc4 {[%emt 0:12:28]} Qc7 {[%emt 0:01:15]} 23. Bxb4 {[%emt 0:07:01]} Rxb4 {[%emt 0:00:23]} 24. Ne5 {[%emt 0:00:03]} Rc8 {[%emt 0:01:08]} 25. Rc1 {[%emt 0:01:21]} Rxd4 {[%emt 0:10:16]} 26. Qxc6 {[%emt 0:01:30]} Rd7 {[%emt 0:03:22]} 27. Qb5 {[%emt 0:08:59]} Qxc1 {[%emt 0:00:43]} 28. Rxc1 {[%emt 0:00:03]} Rxc1+ {[%emt 0:00:03]} 29. Kg2 {[%emt 0:00:04]} Rdc7 {[%emt 0:09:06]} 30. Qb8+ {[%emt 0:00:47]} Rc8 {[%emt 0:00:02]} 31. Qxa7 {[%emt 0:00:05]} R1c7 {[%emt 0:00:35]} 32. Qd4 {[%emt 0:00:53]} Rc5 {[%emt 0:03:54]} 33. a5 {[%emt 0:00:59]} Rxa5 {[%emt 0:02:27]} 34. Nc6 {[%emt 0:00:51]} Raa8 {[%emt 0:00:06]} 35. Ne7+ {[%emt 0:00:08]} Kf8 {[%emt 0:00:12]} 36. Nxc8 {[%emt 0:01:15]} Rxc8 {[%emt 0:00:02]} 37. h3 {[%emt 0:00:45]} h6 {[%emt 0:01:23]} 38. g4 {[%emt 0:00:42]} Ke7 {[%emt 0:00:17]} 39. Qb4+ {[%emt 0:01:48]} Ke8 {[%emt 0:00:15]} 40. f4 {[%emt 0:01:05]} Rd8 {[%emt 0:00:31]} 41. f5 {[%emt 0:03:48]} exf5 {[%emt 0:01:12]} 42. gxf5 {[%emt 0:01:08]} Nd7 {[%emt 0:00:20]} 43. Qc4 {[%emt 0:00:31]} Ke7 {[%emt 0:00:42]} 44. Qb4+ {[%emt 0:00:34]} Ke8 {[%emt 0:00:07]} 45. Qc4 {[%emt 0:00:07]} Ke7 {[%emt 0:00:14]} 46. Qb4+ {[%emt 0:00:50]} Ke8 {[%emt 0:00:48]} 47. Kg3 {[%emt 0:00:00]} f6 {[%emt 0:00:44]} 48. Qc4 {[%emt 0:00:07]} Ke7 {[%emt 0:00:33]} 49. Qc7 {[%emt 0:01:12]} Rb8 {[%emt 0:00:35]} 50. Kh4 {[%emt 0:00:41]} Rb4 {[%emt 0:00:30]} 51. Qc6 {[%emt 0:00:18]} Rd4 {[%emt 0:00:27]} 52. Kh5 {[%emt 0:00:42]} Rd3 {[%emt 0:00:32]} 53. Qe6+ {[%emt 0:00:30]} Kf8 {[%emt 0:00:32]} 54. Kg6 {[%emt 0:00:24]} Ne5+ {[%emt 0:00:18]} 55. Kh7 {[%emt 0:00:08]} Nf7 {[%emt 0:00:38]} 56. h4 {[%emt 0:00:32]} Rd8 {[%emt 0:00:23]} 57. Qb6 {[%emt 0:00:41]} Re8 {[%emt 0:00:35]} 58. Qc5+ {[%emt 0:00:38]} Re7 {[%emt 0:00:02]} 59. Qb4 {[%emt 0:00:15]} Ne5 {[%emt 0:00:45]} 60. Qb8+ {[%emt 0:00:41]} Re8 {[%emt 0:00:04]} 61. Qd6+ {[%emt 0:00:33]} Re7 {[%emt 0:00:08]} 62. Qb4 {[%emt 0:00:28]} Nf7 {[%emt 0:00:35]} 63. Qc5 {[%emt 0:00:44]} Ne5 {[%emt 0:00:09]} 64. Qg1 {[%emt 0:00:30]} g5+ {[%emt 0:01:16]} 65. Kh8 {[%emt 0:00:21]} Nf7+ {[%emt 0:00:22]} 66. Kh7 {[%emt 0:00:02]} Ne5+ {[%emt 0:00:05]} 67. Kh8 {[%emt 0:00:05]} Nf7+ {[%emt 0:01:36]} 68. Kh7 {[%emt 0:00:02]} Ne5+ {[%emt 0:00:04]} 69. Kh8 {[%emt 0:00:42]} Nf7+ {[%emt 0:00:56]} 1/2-1/2